fUSD/lending_fUSD_20241116
["ID","MTS","AMOUNT","RATE_DAILY","PERIOD"]
[342325437,1731718798222,300.0,0.00025,60]
[342325439,1731719081936,507.16840167,0.00025,60]
[342325440,1731719159187,202.218,0.00025,60]
[342325441,1731719176111,10000.0,0.00025,60]
[342325442,1731719209873,998.0,0.00025,60]
[342325443,1731719217343,965.52,8.219e-05,2]
[342325444,1731719238131,-250.0,8.632e-05,2]
[342325445,1731719238155,-231.15,8.668e-05,2]
[342325446,1731719238179,-197.86,8.718e-05,2]
[342325447,1731719238199,-1074.85,8.791e-05,2]
[342325448,1731719238222,-283.3,8.794e-05,2]
[342325449,1731719238242,-1686.88229046,8.794e-05,2]
[342325450,1731719238261,-2000.0,8.809e-05,2]
[342325451,1731719238282,-450.0,8.87e-05,2]
[342325452,1731719238302,-167.32,8.87e-05,2]
[342325453,1731719238324,-250.0,8.959e-05,2]
[342325454,1731719238345,-153.29,8.998e-05,2]
[342325455,1731719238365,-1000.0,9.012e-05,2]
[342325456,1731719238387,-1355.561081,9.059e-05,2]
[342325457,1731719238411,-373.85,9.105e-05,2]
[342325458,1731719238431,-236.19676776,9.137e-05,2]
[342325459,1731719238452,-300.0,9.183e-05,2]
[342325460,1731719238474,-200.0,9.184e-05,2]
[342325461,1731719238495,-500.0,9.269e-05,2]
[342325462,1731719238515,-2219.35,9.402e-05,2]
[342325463,1731719238536,-319.37,9.496e-05,2]
[342325464,1731719238557,-1015.426,9.514e-05,2]
[342325465,1731719238578,-9313.08729197,9.515e-05,2]
[342325469,1731719431492,-300.0,9.27e-05,2]
[342325470,1731719431502,-118.85820021,9.271e-05,2]
[342325471,1731719431514,-536.83568415,9.271e-05,2]
[342325472,1731719431726,-300.0,9.271e-05,2]
[342325473,1731719431846,-14044.48611564,9.271e-05,2]
[342325474,1731719431856,-1109.67,9.291e-05,2]
[342325475,1731719431865,-5025.59,9.365e-05,2]
[342325476,1731719431876,-222.0,9.71e-05,2]
[342325477,1731719431886,-183.2830359,9.71e-05,2]
[342325478,1731719431896,-1000.0,9.8e-05,2]
[342325479,1731719431906,-197.86,9.808e-05,2]
[342325480,1731719431915,-222.0,9.891e-05,2]
[342325481,1731719431925,-150.0,9.899e-05,2]
[342325482,1731719431934,-21016.4992,9.9e-05,2]
[342325483,1731719431944,-1819.86,9.9e-05,2]
[342325484,1731719431953,-1550.8078,9.9e-05,2]
[342325485,1731719431963,-257.94383408,9.9e-05,2]
[342325486,1731719437570,-534.4333347,9.9e-05,2]
[342325487,1731719437582,-771.99283122,9.9e-05,2]
[342325488,1731719437591,-222.0,9.973e-05,2]
[342325489,1731719437602,-222.0,9.973e-05,2]
[342325490,1731719437611,-432.90379701,9.973e-05,2]
[342325491,1731719437620,-222.0,9.999e-05,2]
[342325492,1731719437629,-500.0,9.999e-05,2]
[342325493,1731719437639,-500.0,9.999e-05,2]
[342325494,1731719437648,-500.0,9.999e-05,2]
[342325495,1731719437657,-500.0,9.999e-05,2]
[342325496,1731719437666,-500.0,9.999e-05,2]
[342325498,1731719437676,-500.0,9.999e-05,2]
[342325499,1731719437685,-500.0,9.999e-05,2]
[342325500,1731719437694,-500.0,9.999e-05,2]
[342325501,1731719437703,-500.0,9.999e-05,2]
[342325502,1731719437712,-500.0,9.999e-05,2]
[342325503,1731719437721,-500.0,9.999e-05,2]
[342325504,1731719437730,-500.0,9.999e-05,2]
[342325505,1731719437739,-500.0,9.999e-05,2]
[342325506,1731719437749,-500.0,9.999e-05,2]
[342325507,1731719437758,-500.0,9.999e-05,2]
[342325508,1731719437767,-244.20836184,9.999e-05,2]
[342325509,1731719437778,-255.79163816,9.999e-05,2]
[342325510,1731719437787,-500.0,9.999e-05,2]
[342325511,1731719437798,-500.0,9.999e-05,2]
[342325512,1731719437807,-500.0,9.999e-05,2]
[342325513,1731719437816,-600.0,9.999e-05,2]
[342325514,1731719437825,-500.0,9.999e-05,2]
[342325515,1731719437834,-643.36922244,9.999e-05,2]
[342325516,1731719437843,-500.0,9.999e-05,2]
[342325517,1731719437852,-206.9672,9.999e-05,2]
[342325518,1731719437861,-1356.28908303,0.0001,2]
[342325519,1731719437881,-10094.18219559,0.0001,2]
[342325520,1731719437906,-1090.74995,0.0001,2]
[342325521,1731719437917,-751.34587676,0.0001,2]
[342325522,1731719437942,-2216.71432394,0.0001,2]
[342325523,1731719437954,-4639.77700316,0.0001,2]
[342325534,1731719439558,-1822.41140796,0.0001,2]
[342325535,1731719439569,-332.33251416,0.0001,2]
[342325536,1731719439585,-436.08749017,0.0001,2]
[342325537,1731719439596,-28443.3045464,0.0001,2]
[342325538,1731719439623,-773.01649789,0.0001,2]
[342325539,1731719439635,-821.53094954,0.0001,2]
[342325540,1731719439646,-541.053,0.0001,2]
[342325541,1731719439657,-429.76,0.0001,2]
[342325542,1731719439688,-455.3,0.0001,2]
[342325543,1731719439701,-253.94130098,0.0001,2]
[342325546,1731719442567,-3394.14838723,0.0001,2]
[342325547,1731719442579,-2850.40442026,0.0001,2]
[342325548,1731719442629,-5650.51349615,0.0001,2]
[342325549,1731719442692,-2969.05809688,0.0001,2]
[342325550,1731719442810,-5557.25681238,0.0001,2]
[342325551,1731719442822,-631.73,0.0001,2]
[342325552,1731719442878,-3950.0,0.0001,2]
[342325553,1731719442890,-16697.2390424,0.0001,2]
[342325554,1731719442947,-3025.55159345,0.0001,2]
[342325555,1731719442959,-2007.67764251,0.0001,2]
[342325557,1731719445723,-4471.29295487,0.0001,2]
[342325558,1731719445735,-7264.75128095,0.0001,2]
[342325559,1731719445752,-25213.094,0.0001,2]
[342325560,1731719445763,-545.56981219,0.0001,2]
[342325561,1731719445786,-442.52682,0.0001,2]
[342325562,1731719445798,-8581.40521192,0.0001,2]
[342325563,1731719445854,-7901.29545209,0.0001,2]
[342325565,1731719833683,192.556,0.00025,60]
[342325566,1731719999234,1005.54,8.219e-05,2]
[342325568,1731720260709,159.53,7.657e-05,2]
[342325569,1731720326671,1019.56391797,0.00025,60]
[342325570,1731720356673,750.0,6.94e-05,2]
[342325571,1731720364122,1500.0,0.00025,120]
[342325572,1731720390460,291.043136,0.00025,60]
[342325573,1731720443123,-1060.11084899,9e-05,2]
[342325574,1731720443143,-20000.0,9.5e-05,2]
[342325575,1731720443164,-250.0,9.53e-05,2]
[342325576,1731720443184,-166.01036519,9.6e-05,5]
[342325577,1731720443204,-1000.0,9.627e-05,2]
[342325578,1731720443229,-554.83,9.694e-05,2]
[342325579,1731720443250,-681.28,9.705e-05,2]
[342325580,1731720443269,-1628.73,9.735e-05,2]
[342325581,1731720443289,-5049.07309828,9.9e-05,2]
[342325582,1731720443312,-150.0,9.998e-05,2]
[342325583,1731720443336,-150.01,9.999e-05,2]
[342325584,1731720443357,-500.0,9.999e-05,2]
[342325585,1731720443378,-500.0,9.999e-05,2]
[342325586,1731720443398,-500.0,9.999e-05,2]
[342325587,1731720443422,-500.0,9.999e-05,2]
[342325588,1731720443442,-500.0,9.999e-05,2]
[342325589,1731720443463,-500.0,9.999e-05,2]
[342325590,1731720443485,-500.0,9.999e-05,2]
[342325591,1731720443505,-500.0,9.999e-05,2]
[342325592,1731720443526,-500.0,9.999e-05,2]
[342325593,1731720443546,-500.0,9.999e-05,2]
[342325594,1731720443567,-500.0,9.999e-05,2]
[342325595,1731720443587,-500.0,9.999e-05,2]
[342325596,1731720443607,-100.85812057,9.999e-05,2]
[342325597,1731720473657,273.87430184,0.00025,120]
[342325598,1731720475276,236.27123937,0.00022,120]
[342325599,1731720494760,1480.5678454,0.00025,60]
[342325600,1731720513393,183.448,0.00025,60]
[342325601,1731720519971,639.20846151,0.00025,120]
[342325604,1731720530556,151.0,0.00025,60]
[342325605,1731720554337,151.0,0.00025,60]
[342325610,1731720567013,151.0,0.00025,60]
[342325611,1731720577524,151.0,0.00025,60]
[342325615,1731720590144,151.0,0.00025,60]
[342325618,1731720605342,151.0,0.00025,60]
[342325622,1731720618573,151.0,0.00025,60]
[342325623,1731720623151,262.0,0.000172,45]
[342325624,1731720631549,151.0,0.00025,60]
[342325628,1731720631849,-162.4257,9.899e-05,2]
[342325629,1731720631859,-150.0,9.998e-05,2]
[342325630,1731720631869,-988.93827506,9.999e-05,2]
[342325631,1731720631882,-950.26546194,9.999e-05,2]
[342325632,1731720631893,-1266.60175907,9.999e-05,2]
[342325633,1731720631905,-2539.74923931,9.999e-05,2]
[342325634,1731720632175,-2005.20139994,9.999e-05,2]
[342325635,1731720632188,-2176.37284977,9.999e-05,2]
[342325636,1731720632203,-1297.00343464,9.999e-05,2]
[342325637,1731720632214,-1947.2218158,9.999e-05,2]
[342325638,1731720632225,-2616.58799259,9.999e-05,2]
[342325639,1731720632236,-1498.4689072,9.999e-05,2]
[342325640,1731720632249,-1098.09,9.999e-05,2]
[342325641,1731720632262,-627.6796534,9.999e-05,2]
[342325778,1731720638072,-275040.44085399,9.999e-05,2]
[342325779,1731720638082,-500.0,9.999e-05,2]
[342325780,1731720638092,-500.0,9.999e-05,2]
[342325781,1731720638102,-500.0,9.999e-05,2]
[342325782,1731720638111,-399.14187943,9.999e-05,2]
[342325783,1731720638120,-150.01,9.999e-05,2]
[342325784,1731720638129,-1278.21013236,9.999e-05,2]
[342325785,1731720638138,-694.72,9.999e-05,2]
[342325786,1731720638147,-694.72,9.999e-05,2]
[342325787,1731720638157,-694.72,9.999e-05,2]
[342325788,1731720638167,-694.72,9.999e-05,2]
[342325789,1731720638176,-694.72,9.999e-05,2]
[342325790,1731720638185,-694.72,9.999e-05,2]
[342325791,1731720638194,-694.72,9.999e-05,2]
[342325792,1731720638210,-694.72,9.999e-05,2]
[342325793,1731720638219,-694.72,9.999e-05,2]
[342325794,1731720638229,-694.72,9.999e-05,2]
[342325795,1731720638238,-694.72,9.999e-05,2]
[342325796,1731720638247,-694.72,9.999e-05,2]
[342325797,1731720638256,-694.72,9.999e-05,2]
[342325798,1731720638265,-694.72,9.999e-05,2]
[342325799,1731720638275,-694.72,9.999e-05,2]
[342325800,1731720638284,-694.72,9.999e-05,2]
[342325801,1731720638293,-694.72,9.999e-05,2]
[342325802,1731720638302,-694.72,9.999e-05,2]
[342325803,1731720638311,-694.72,9.999e-05,2]
[342325804,1731720638320,-694.72,9.999e-05,2]
[342325805,1731720638330,-694.72,9.999e-05,2]
[342325806,1731720638339,-694.72,9.999e-05,2]
[342325807,1731720638347,-694.72,9.999e-05,2]
[342325808,1731720638357,-694.84008717,9.999e-05,2]
[342325809,1731720638366,-500.0,9.999e-05,2]
[342325810,1731720638375,-226.79242623,9.999e-05,2]
[342325811,1731720638384,-500.0,9.999e-05,2]
[342325812,1731720638393,-500.0,9.999e-05,2]
[342325813,1731720638404,-500.0,9.999e-05,2]
[342325814,1731720638414,-500.0,9.999e-05,2]
[342325815,1731720638423,-500.0,9.999e-05,2]
[342325816,1731720638432,-500.0,9.999e-05,2]
[342325817,1731720638441,-500.0,9.999e-05,2]
[342325818,1731720638453,-500.0,9.999e-05,2]
[342325819,1731720638463,-500.0,9.999e-05,2]
[342325820,1731720638472,-500.0,9.999e-05,2]
[342325821,1731720638482,-500.0,9.999e-05,2]
[342325822,1731720638490,-500.0,9.999e-05,2]
[342325823,1731720638499,-500.0,9.999e-05,2]
[342325824,1731720638509,-500.0,9.999e-05,2]
[342325825,1731720638518,-500.0,9.999e-05,2]
[342325826,1731720638527,-199.34,9.999e-05,2]
[342325827,1731720638536,-150.4783638,9.999e-05,2]
[342325828,1731720638545,-1298829.68093505,0.0001,2]
[342325829,1731720638586,-462.45588772,0.0001,2]
[342325830,1731720638597,-721.27374421,0.0001,2]
[342325831,1731720638607,-20007.73174938,0.0001,2]
[342325832,1731720638618,-1716.22619719,0.0001,2]
[342325833,1731720638629,-7253.96241575,0.0001,2]
[342325835,1731720639823,-2255.5436634,0.0001,2]
[342325836,1731720639835,-1976.05521524,0.0001,2]
[342325837,1731720639845,-1827.61435771,0.0001,2]
[342325838,1731720639956,-323.63747923,0.0001,2]
[342325839,1731720639967,-11507.880215,0.0001,2]
[342325840,1731720639979,-300.0,0.0001,2]
[342325841,1731720639989,-1166.31494601,0.0001,2]
[342325842,1731720640078,-490.53491294,0.0001,2]
[342325843,1731720640089,-2345.90135041,0.0001,2]
[342325844,1731720640099,-8143.33150963,0.0001,2]
[342325845,1731720640110,-715.50875528,0.0001,2]
[342325846,1731720640120,-19661.35225761,0.0001,2]
[342325847,1731720640131,-302.2027,0.0001,2]
[342325850,1731720640657,151.0,0.00025,60]
[342325855,1731720642834,-2503.17352695,0.0001,2]
[342325856,1731720642846,-6217.39102012,0.0001,2]
[342325857,1731720642857,-875615.06016573,0.0001,2]
[342325859,1731720642963,-856.45119602,0.0001,2]
[342325860,1731720642975,-12348.10139249,0.0001,2]
[342325861,1731720642986,-3953.81927455,0.0001,2]
[342325862,1731720643093,-6069.351735,0.0001,2]
[342325863,1731720643104,-3450.8029278,0.0001,2]
[342325864,1731720643115,-1740.49418401,0.0001,2]
[342325865,1731720643220,-382.92113158,0.0001,2]
[342325892,1731720645975,-4127.08065414,0.0001,2]
[342325893,1731720646177,-4087.87804824,0.0001,2]
[342325894,1731720646188,-6084.62800811,0.0001,2]
[342325895,1731720646201,-1138.28203649,0.0001,2]
[342325896,1731720646212,-32511.54426098,0.0001,2]
[342325897,1731720646236,-5336.44468557,0.0001,2]
[342325898,1731720646247,-4526.39403604,0.0001,2]
[342325899,1731720646257,-1060.66763246,0.0001,2]
[342325900,1731720650208,151.0,0.00025,60]
[342325901,1731720660854,151.0,0.00025,60]
[342325902,1731720669580,151.0,0.00025,60]
[342325903,1731720677621,151.0,0.00025,60]
[342325904,1731720681835,1039.68,8.219e-05,2]
[342325905,1731720685330,151.0,0.00025,60]
[342325906,1731720692056,1933.184,2.5e-05,60]
[342325907,1731720694208,151.0,0.00025,60]
[342325910,1731720815100,1214.0,0.00025,120]
[342325914,1731721125873,636.0,0.00025,60]
[342325915,1731721178961,5118.43,0.00025,60]
[342325916,1731721186984,636.0,0.00025,60]
[342325917,1731721189961,174.815,0.00025,60]
[342326077,1731721410236,2000.0,0.00024855,120]
[342326078,1731721437951,500.0,0.00023167,120]
[342326079,1731721438414,292.82774,0.00024767,120]
[342326080,1731721463413,987.69,8.219e-05,2]
[342326081,1731721559472,-1000.0,9.218e-05,2]
[342326082,1731721559495,-250.0,9.353e-05,2]
[342326083,1731721559517,-166.59,9.353e-05,2]
[342326084,1731721559537,-250.0,9.376e-05,2]
[342326085,1731721559560,-300.0,9.434e-05,2]
[342326086,1731721559582,-22934.40761509,9.435e-05,2]
[342326087,1731721664888,1823.3800932,0.00025,60]
[342326094,1731721755094,-250.0,8.928e-05,2]
[342326095,1731721755115,-500.0,8.93e-05,2]
[342326096,1731721755135,-323.73002494,8.932e-05,2]
[342326103,1731721832072,-955.59,8.93e-05,2]
[342326104,1731721832082,-226.18997506,8.932e-05,2]
[342326105,1731721832099,-150.0,9.507e-05,2]
[342326106,1731721832110,-174.0,9.606e-05,2]
[342326107,1731721832120,-254.97,9.694e-05,2]
[342326108,1731721832129,-151.69,9.7e-05,2]
[342326109,1731721832138,-151.03,9.7e-05,2]
[342326110,1731721832148,-150.0,9.7e-05,2]
[342326111,1731721832157,-150.0,9.7e-05,2]
[342326112,1731721832166,-150.0,9.71e-05,2]
[342326113,1731721832175,-150.0,9.71e-05,2]
[342326114,1731721832185,-150.0,9.71e-05,2]
[342326115,1731721832194,-150.0,9.71e-05,2]
[342326116,1731721832204,-300.0,9.714e-05,2]
[342326117,1731721832213,-3200.20734022,9.715e-05,2]
[342326118,1731721832225,-495.5346886,9.715e-05,2]
[342326119,1731721832236,-1795.4653114,9.715e-05,2]
[342326120,1731721832247,-1196.37363448,9.715e-05,2]
[342326121,1731721832257,-672.86,9.715e-05,2]
[342326122,1731721832266,-150.0,9.72e-05,2]
[342326123,1731721832276,-150.0,9.72e-05,2]
[342326124,1731721832285,-1500.0,9.822e-05,2]
[342326125,1731721832294,-150.0,9.863e-05,2]
[342326126,1731721832304,-150.0,9.863e-05,2]
[342326127,1731721832313,-150.0,9.864e-05,2]
[342326128,1731721832322,-150.0,9.864e-05,2]
[342326129,1731721832331,-150.0,9.869e-05,2]
[342326130,1731721832345,-150.0,9.874e-05,2]
[342326131,1731721832355,-150.85021211,9.876e-05,2]
[342326132,1731721832364,-150.0,9.879e-05,2]
[342326133,1731721832373,-150.0,9.882e-05,2]
[342326134,1731721832382,-150.0,9.884e-05,2]
[342326135,1731721832392,-150.0,9.887e-05,2]
[342326136,1731721832401,-150.0,9.888e-05,2]
[342326137,1731721832410,-150.0,9.89e-05,2]
[342326138,1731721832419,-150.0,9.891e-05,2]
[342326139,1731721832429,-150.0,9.893e-05,2]
[342326140,1731721832438,-150.0,9.895e-05,2]
[342326142,1731721832447,-186.4584,9.899e-05,2]
[342326143,1731721832456,-503.4679,9.899e-05,2]
[342326144,1731721832465,-150.0,9.899e-05,2]
[342326145,1731721832474,-1053.4321,9.9e-05,2]
[342326146,1731721832483,-150.0,9.9e-05,2]
[342326147,1731721832492,-150.0,9.9e-05,2]
[342326148,1731721832501,-1242.5043,9.9e-05,2]
[342326149,1731721832511,-150.0,9.901e-05,2]
[342326150,1731721832520,-150.0,9.901e-05,2]
[342326151,1731721832528,-150.0,9.905e-05,2]
[342326152,1731721832537,-150.0,9.91e-05,2]
[342326153,1731721832546,-150.0,9.912e-05,2]
[342326154,1731721832555,-150.0,9.923e-05,2]
[342326155,1731721832564,-150.0,9.924e-05,2]
[342326156,1731721832573,-150.0,9.924e-05,2]
[342326157,1731721832582,-150.0,9.926e-05,2]
[342326158,1731721832593,-150.0,9.936e-05,2]
[342326159,1731721832603,-150.0,9.937e-05,2]
[342326160,1731721832612,-150.0,9.938e-05,2]
[342326161,1731721832621,-150.0,9.943e-05,2]
[342326162,1731721832630,-150.0,9.943e-05,2]
[342326163,1731721832639,-150.0,9.948e-05,2]
[342326164,1731721832649,-150.0,9.956e-05,2]
[342326165,1731721832658,-150.0,9.956e-05,2]
[342326166,1731721832667,-150.0,9.962e-05,2]
[342326167,1731721832676,-150.0,9.962e-05,2]
[342326168,1731721832685,-150.0,9.965e-05,2]
[342326169,1731721832694,-150.0,9.967e-05,2]
[342326170,1731721832704,-150.0,9.967e-05,2]
[342326171,1731721832713,-151.12184107,9.973e-05,2]
[342326172,1731721832722,-150.0,9.973e-05,2]
[342326173,1731721832731,-150.0,9.974e-05,2]
[342326174,1731721832740,-150.0,9.975e-05,2]
[342326175,1731721832749,-150.0,9.975e-05,2]
[342326176,1731721832759,-150.0,9.98e-05,2]
[342326177,1731721832768,-150.0,9.987e-05,2]
[342326178,1731721832777,-150.0,9.988e-05,2]
[342326179,1731721832787,-150.0,9.988e-05,2]
[342326180,1731721832799,-150.0,9.993e-05,2]
[342326181,1731721832809,-150.0,9.994e-05,2]
[342326182,1731721832819,-150.0,9.995e-05,2]
[342326183,1731721832828,-150.01,9.999e-05,2]
[342326184,1731721832840,-162.84044661,9.999e-05,2]
[342326185,1731721832849,-150.0,9.999e-05,2]
[342326186,1731721832858,-385.4427801,9.999e-05,2]
[342326187,1731721832868,-216.6504467,9.999e-05,2]
[342326188,1731721832877,-191.6093058,9.999e-05,2]
[342326189,1731721832887,-164.06994488,9.999e-05,2]
[342326190,1731721832898,-188.8098033,9.999e-05,2]
[342326191,1731721832906,-216.83951646,9.999e-05,2]
[342326192,1731721832915,-437.04229488,9.999e-05,2]
[342326193,1731721832924,-195.75399197,9.999e-05,2]
[342326194,1731721832933,-500.0,9.999e-05,2]
[342326195,1731721832943,-449.9671072,9.999e-05,2]
[342326196,1731721832953,-500.0,9.999e-05,2]
[342326197,1731721832962,-500.0,9.999e-05,2]
[342326198,1731721832971,-500.0,9.999e-05,2]
[342326199,1731721832980,-500.0,9.999e-05,2]
[342326200,1731721832989,-486.25431499,9.999e-05,2]
[342326201,1731721832999,-500.0,9.999e-05,2]
[342326202,1731721833008,-357.40794459,9.999e-05,2]
[342326203,1731721833017,-118.46573204,9.999e-05,2]
[342326204,1731721833029,-381.53426796,9.999e-05,2]
[342326205,1731721833039,-271.61350648,9.999e-05,2]
[342326206,1731721833052,-228.38649352,9.999e-05,2]
[342326207,1731721833063,-225.33116468,9.999e-05,2]
[342326208,1731721833076,-274.66883532,9.999e-05,2]
[342326209,1731721833087,-416.10287572,9.999e-05,2]
[342326210,1731721833121,-83.89712428,9.999e-05,2]
[342326211,1731721833130,-362.26833629,9.999e-05,2]
[342326212,1731721833140,-344.18124146,9.999e-05,2]
[342326213,1731721833151,-393.38993466,9.999e-05,2]
[342326214,1731721833161,-414.85228431,9.999e-05,2]
[342326215,1731721833171,-500.0,9.999e-05,2]
[342326216,1731721833180,-500.0,9.999e-05,2]
[342326217,1731721833190,-461.1757282,9.999e-05,2]
[342326218,1731721833200,-11493.75493105,0.0001,2]
[342326219,1731721833212,-10469.77832539,0.0001,2]
[342326220,1731721833223,-5265.15368676,0.0001,2]
[342326221,1731721833234,-587.35167302,0.0001,2]
[342326222,1731721833286,-2049.41666824,0.0001,2]
[342326226,1731721838151,-45333.07806546,9.9e-05,2]
[342326227,1731721838162,-2657.63140208,9.9e-05,2]
[342326228,1731721838358,-2623.66041532,9.9e-05,2]
[342326229,1731721838370,-5361.47412423,9.9e-05,2]
[342326230,1731721838543,-3112.34999999,9.9e-05,2]
[342326250,1731721840218,-11258.98431427,9.9e-05,2]
[342326251,1731721840229,-279.0750322,9.9e-05,2]
[342326252,1731721840241,-667.91257,9.9e-05,2]
[342326253,1731721840252,-370.16661167,9.9e-05,2]
[342326254,1731721840262,-9043.99339255,9.9e-05,2]
[342326255,1731721840273,-858.3418099,9.9e-05,2]
[342326260,1731721843529,-235.96,9.72e-05,2]
[342326261,1731721843539,-5764.039985,9.9e-05,2]
[342326262,1731721843550,-646.2314293,9.9e-05,2]
[342326263,1731721843560,-2924.51154027,9.9e-05,2]
[342326264,1731721843571,-3567.77162227,9.9e-05,2]
[342326265,1731721843582,-112366.87971178,9.9e-05,2]
[342326266,1731721843623,-589.40836083,9.9e-05,2]
[342326292,1731721846047,-2157.57065862,9.9e-05,2]
[342326298,1731721846249,-1747.36288144,9.9e-05,2]
[342326299,1731721846260,-456.62127125,9.9e-05,2]
[342326301,1731721846451,-417.594,9.9e-05,2]
[342326303,1731721865411,166.462,0.00025,60]
[342326304,1731722000245,500.0,0.00024801,120]
[342326305,1731722017248,2000.0,0.00024888,120]
[342326306,1731722047720,200.0,0.00024868,120]
[342326307,1731722145424,50000.0,0.00025,60]
[342326308,1731722158815,50000.0,0.00025,60]
[342326309,1731722162924,50000.0,0.00025,60]
[342326310,1731722164147,50000.0,0.00025,60]
[342326311,1731722168064,50000.0,0.00025,60]
[342326312,1731722171179,50000.0,0.00025,60]
[342326313,1731722181314,22159.3784126,0.00025,60]
[342326314,1731722205713,1017.99,8.219e-05,2]
[342326317,1731722743152,-200.0,8.823e-05,2]
[342326318,1731722743182,-250.0,8.827e-05,2]
[342326319,1731722743207,-573.46,9.193e-05,2]
[342326320,1731722743234,-1000.0,9.195e-05,2]
[342326321,1731722743260,-500.0,9.268e-05,2]
[342326322,1731722743287,-800.0,9.326e-05,2]
[342326323,1731722743310,-409.79,9.408e-05,2]
[342326324,1731722743333,-150.0,9.669e-05,2]
[342326325,1731722743357,-150.0,9.672e-05,2]
[342326326,1731722743380,-150.0,9.697e-05,2]
[342326327,1731722743406,-150.0,9.703e-05,2]
[342326328,1731722743431,-150.0,9.703e-05,2]
[342326329,1731722743453,-150.0,9.706e-05,2]
[342326330,1731722743474,-150.0,9.72e-05,2]
[342326331,1731722743496,-150.0,9.73e-05,2]
[342326332,1731722743518,-150.0,9.739e-05,2]
[342326333,1731722743543,-150.0,9.741e-05,2]
[342326334,1731722743567,-150.0,9.747e-05,2]
[342326335,1731722743598,-150.0,9.748e-05,2]
[342326336,1731722743622,-150.0,9.75e-05,2]
[342326337,1731722743645,-150.0,9.751e-05,2]
[342326338,1731722743667,-150.52569975,9.754e-05,2]
[342326339,1731722743694,-150.0,9.755e-05,2]
[342326340,1731722743718,-150.0,9.759e-05,2]
[342326341,1731722743754,-150.0,9.764e-05,2]
[342326342,1731722743779,-300.0,9.765e-05,2]
[342326343,1731722743804,-150.0,9.766e-05,2]
[342326344,1731722743829,-150.0,9.766e-05,2]
[342326345,1731722743853,-915.084,9.766e-05,2]
[342326346,1731722743879,-150.0,9.767e-05,2]
[342326347,1731722743903,-150.0,9.768e-05,2]
[342326348,1731722743929,-150.0,9.769e-05,2]
[342326349,1731722743955,-150.0,9.77e-05,2]
[342326350,1731722743980,-150.0,9.779e-05,2]
[342326351,1731722744005,-150.0,9.795e-05,2]
[342326352,1731722744029,-150.0,9.797e-05,2]
[342326353,1731722744054,-150.0,9.798e-05,2]
[342326354,1731722744079,-150.0,9.8e-05,2]
[342326355,1731722744108,-150.0,9.804e-05,2]
[342326356,1731722744132,-150.0,9.809e-05,2]
[342326357,1731722744161,-150.0,9.809e-05,2]
[342326358,1731722744186,-150.0,9.815e-05,2]
[342326359,1731722744213,-150.0,9.817e-05,2]
[342326360,1731722744239,-150.0,9.819e-05,2]
[342326361,1731722744267,-150.0,9.823e-05,2]
[342326362,1731722744294,-150.0,9.827e-05,2]
[342326363,1731722744318,-150.0,9.828e-05,2]
[342326364,1731722744345,-150.0,9.828e-05,2]
[342326365,1731722744371,-150.0,9.836e-05,2]
[342326366,1731722744397,-150.0,9.836e-05,2]
[342326367,1731722744422,-150.0,9.836e-05,2]
[342326368,1731722744445,-150.0,9.836e-05,2]
[342326369,1731722744468,-150.0,9.847e-05,2]
[342326370,1731722744491,-150.0,9.858e-05,2]
[342326371,1731722744514,-150.0,9.86e-05,2]
[342326372,1731722744540,-150.0,9.867e-05,2]
[342326373,1731722744564,-150.0,9.88e-05,2]
[342326374,1731722744586,-150.0,9.881e-05,2]
[342326375,1731722744607,-6345.62629352,9.888e-05,2]
[342326376,1731722823716,1090.0,0.0002,90]
[342326377,1731722861085,5565.0,0.0002,90]
[342326378,1731722899108,150.0,8.219e-05,2]
[342326379,1731722899136,817.09,8.219e-05,2]
[342326587,1731723032135,-150.0,9.729e-05,2]